Cogmind - Beta 14 @@@ ROGUE MODE // 2025.01.05 @ 20:15:39 Player: Ironprostate Result: Destroyed by C-17 Slicer with Blade Saw Performance ------------- Evolutions (2) 1000 Regions Visited (5) 1000 Robots Destroyed (43) 215 Value Destroyed (1176) 1176 Prototype IDs (25) 500 Alien Tech Used (0) 0 Bonus (300) 300 TOTAL SCORE: 4191 Bonus ------- Aligned with FarCom 300 Cogmind --------- Core Integrity 0/550 Matter 268/300 Energy 61/100 System Corruption 0% Temperature Cool (9) Movement Core (50) Location -8/Materials Parts ------- > --- POWER (1) -------- (None) > --- PROPULSION (4) --- (None) > --- UTILITY (3) ------ (None) > --- WEAPON (3) ------- Blade Saw > --- INVENTORY (5) ---- Aluminum Leg Aluminum Leg Peak State ------------ > --- POWER ------------ (None) > --- PROPULSION ------- Aluminum Leg Aluminum Leg > --- UTILITY ---------- Heat Sink Disposable Heat Sink Small Storage Unit > --- WEAPON ----------- Particle Gun AWS/Gauss > --- INVENTORY -------- Improved Ion Engine Shock Rifle Pulse Rifle Light Assault Rifle Heavy Assault Rifle Assault Cannon Rocket Launcher Makeshift Spear [Rating: 26] Favorites ----------- Power Ion Engine Engine Ion Engine Propulsion Aluminum Leg Treads Light Treads Leg Aluminum Leg Utility Small Storage Unit Device Disposable Heat Sink Storage Small Storage Unit Protection Utility Shielding Weapon Light Assault Rifle Energy Gun Particle Gun Ballistic Gun Light Assault Rifle Ballistic Cannon Improved Light Cannon Launcher Rocket Launcher Slashing Weapon Blade Saw Piercing Weapon Makeshift Spear Special Melee Weapon Datajack Build | -11 -10 -10 -10 -9 -8 ------- Run | Yrd Mat Min Exi Min Mat Slots Evolved 4 | . . . . . 4 Power . | . . . . . . Propulsion 2 | . . . . . 2 Utility 1 | . . . . . 1 Weapon 1 | . . . . . 1 Parts Attached 55 | 7 7 15 1 . 25 Power 8 | 2 1 2 . . 3 Engine 8 | 2 1 2 . . 3 Core . | . . . . . . Reactor . | . . . . . . Propulsion 14 | 2 3 3 . . 6 Treads 1 | . . . . . 1 Leg 13 | 2 3 3 . . 5 Wheel . | . . . . . . Hover . | . . . . . . Flight . | . . . . . . Utility 7 | . 2 . . . 5 Device 5 | . . . . . 5 Storage 1 | . 1 . . . . Processor . | . . . . . . Hackware . | . . . . . . Protection 1 | . 1 . . . . Artifact . | . . . . . . Weapon 26 | 3 1 10 1 . 11 Energy Gun 6 | 2 . . . . 4 Energy Cannon . | . . . . . . Ballistic Gun 9 | 1 . 3 1 . 4 Ballistic Cannon 4 | . 1 2 . . 1 Launcher 3 | . . 3 . . . Special Weapon . | . . . . . . Impact Weapon . | . . . . . . Slashing Weapon 1 | . . . . . 1 Piercing Weapon 2 | . . 2 . . . Special Melee Weapon 1 | . . . . . 1 Unidentified Prototypes . | . . . . . . Parts Lost 12 | . . 1 . . 11 Power 3 | . . 1 . . 2 Propulsion 4 | . . . . . 4 Utility 2 | . . . . . 2 Weapon 3 | . . . . . 3 Highest Loss Streak 8 | . . 1 . . 8 To Critical Strikes . | . . . . . . Average Slot Usage (%) 87 | . 94 99 79 71 78 Engine 11 | . 14 13 14 14 8 Treads 1 | . . . . . 4 Leg 24 | . 28 28 28 28 17 Device 5 | . . . . . 15 Storage 11 | . 9 14 14 14 8 Protection 7 | . 13 14 4 . . Energy Gun 5 | . 14 . . . 8 Ballistic Gun 11 | . 5 14 14 14 8 Ballistic Cannon 6 | . 8 9 . . 6 Piercing Weapon 1 | . . . 4 . . Peak Build Rating 26 | 5 9 12 22 21 26 Average Rating 13 | 2 7 9 18 21 18 On Entrance 11 | . 5 9 11 21 21 Naked Turns 1 | . . . . . 1 Heaviest Build 25 | 8 17 18 21 20 25 Greatest Support 43 | 20 20 20 20 20 43 Greatest Overweight (x) 2 | . . . 1 . 2 Average Overweight (x) . | . . . . . . Largest Inventory Capacity 8 | 5 8 8 8 8 8 Average Capacity 7 | 5 7 8 8 8 7 Most Carried 8 | 4 8 8 8 7 8 Average Carried 6 | . 6 7 6 7 6 Final Capacity 8 | 5 8 8 8 8 5 Final Carried 8 | 4 8 7 7 7 2 Class Distribution -------------------- 57% | Mutant 25% | Scavenger-Skirmisher 16% | Scavenger-Mutant Dominant Class ---------------- Mutant | -10/Materials Mutant | -10/Mines Mutant | -10/Exiles Mutant | -9/Mines Scavenger-Skirmisher | -8/Materials Resources | -11 -10 -10 -10 -9 -8 ----------- Run | Yrd Mat Min Exi Min Mat Matter Collected 1243 | 273 132 299 . . 539 Remotely . | . . . . . . Salvage Created 1367 | 47 309 384 . . 627 Parts 74 | 3 12 23 . . 36 Haulers Intercepted . | . . . . . . Recyclers Shooed . | . . . . . . Parts Field Recycled . | . . . . . . Retrieved Matter . | . . . . . . Parts Self-Destructed . | . . . . . . Prevented . | . . . . . . Kills | -11 -10 -10 -10 -9 -8 ------- Run | Yrd Mat Min Exi Min Mat Combat Hostiles Destroyed 37 | 1 6 18 . . 12 Guns 15 | 1 1 9 . . 4 Cannons 17 | . 5 4 . . 8 AOE 5 | . . 5 . . . Classes Destroyed 12 | 1 2 2 . . 7 Worker 2 | . . . . . 2 Tunneler 1 | . . 1 . . . Recycler 3 | . 2 . . . 1 Watcher 1 | . . . . . 1 Swarmer 12 | . 3 9 . . . Cutter 1 | . . . . . 1 Grunt 18 | 1 3 8 . . 6 Brawler 1 | . . . . . 1 Duelist 1 | . . . . . 1 Sentry 2 | . . . . . 2 Hunter 1 | . . . . . 1 Assembled 1 | . . 1 . . . Best Kill Streak 5 | 1 5 5 . . 4 Combat Bots Only 4 | 1 4 4 . . 3 Max Kills in Single Turn 2 | 1 1 2 . . 2 Gunslinging . | . . . . . . Exploded 1 | . . 1 . . . Melee . | . . . . . . Uniques/NPCs Destroyed . | . . . . . . Combat | -11 -10 -10 -10 -9 -8 -------- Run | Yrd Mat Min Exi Min Mat Hostile Shots Fired 245 | 2 32 78 . . 133 Missed 70 | . 10 21 . . 39 Damage Taken 2781 | 20 254 583 . . 1924 Core 781 | 10 64 138 . . 569 Absorbed by Shields . | . . . . . . Redirected to Shielding 3 | . 3 . . . . Regen/Repaired (Parts) 21 | . 21 . . . . Core Remaining (%) 55 | 96 . . . 15 . Volleys Fired 122 | 3 21 36 . . 62 Largest 3 | 2 2 2 . . 3 Hottest 132 | 60 79 79 . . 132 Shots Fired 262 | 6 42 72 . . 142 Gun 165 | 6 24 36 . . 99 Cannon 91 | . 18 30 . . 43 Launcher 6 | . . 6 . . . Special . | . . . . . . Kinetic 176 | 3 21 62 . . 90 Thermal 44 | . . . . . 44 Explosive 6 | . . 6 . . . Electromagnetic 36 | 3 21 4 . . 8 Robot Hit Streak 8 | 2 6 8 . . 6 Robot Miss Streak 6 | 2 5 3 . . 6 Penetration Max . | . . . . . . Secondary Targets . | . . . . . . Autonomous 5 | . . . . . 5 Shots Hit Robots 131 | 3 23 36 . . 69 Core Hits 76 | 2 12 26 . . 36 Critical Kills . | . . . . . . Critical Parts Destroyed . | . . . . . . Critical Strikes 4 | . 2 . . . 2 Burn 1 | . . . . . 1 Blast 3 | . 2 . . . 1 Melee Attacks 6 | . . 6 . . . Impact . | . . . . . . Slashing . | . . . . . . Piercing 6 | . . 6 . . . Sneak Attacks . | . . . . . . Combat Hostiles . | . . . . . . Follow-up Attacks . | . . . . . . Damage Inflicted 2674 | 37 388 926 . . 1323 Guns 1166 | 37 131 213 . . 785 Cannons 1067 | . 247 294 . . 526 Explosions 429 | . 10 419 . . . Melee . | . . . . . . Ramming 12 | . . . . . 12 Kinetic 1652 | 24 253 484 . . 891 Thermal 362 | . 10 . . . 352 Explosive 419 | . . 419 . . . Electromagnetic 229 | 13 125 23 . . 68 Impact . | . . . . . . Slashing . | . . . . . . Piercing . | . . . . . . Highest Corruption . | . . . . . . Average Corruption . | . . . . . . Corruption Purged . | . . . . . . Corruption Blocked . | . . . . . . Overload Shots . | . . . . . . Overflow Damage 6 | . . 4 . . 2 Projectiles 6 | . . 4 . . 2 Explosions . | . . . . . . Melee . | . . . . . . Knockbacks 13 | . 3 4 . . 6 Impact . | . . . . . . Kinetic 12 | . 3 4 . . 5 Secondary 1 | . . . . . 1 Self-Inflicted Damage 87 | . 57 23 . . 7 Shots 3 | . 2 1 . . . Rammed . | . . . . . . Targets Rammed 4 | . 1 . . . 3 Kicked 4 | . 1 . . . 3 Crushed . | . . . . . . Highest Temperature 147 | 46 138 72 . . 147 Average Temperature 35 | 23 52 18 . . 36 Received Heat Transfer 729 | 12 57 156 . . 504 Siege Activations . | . . . . . . Robots Corrupted . | . . . . . . Combat Hostiles . | . . . . . . Parts Fried . | . . . . . . Impact Corruptions . | . . . . . . Robots Melted . | . . . . . . Combat Hostiles . | . . . . . . Parts Melted 1 | . . . . . 1 Heat Transferred 938 | . 50 . . . 888 Parts Sabotaged . | . . . . . . Parts Stolen . | . . . . . . Parts Stripped . | . . . . . . Power Chain Reactions 2 | . 2 . . . . Alert | -11 -10 -10 -10 -9 -8 ------- Run | Yrd Mat Min Exi Min Mat Peak Influence 236 | 20 166 210 . 1 236 Initial 49 | . 13 49 . . . Average 79 | 3 69 121 . . 56 Maximum Alert Level 1 | . . 1 . . 1 Low Security (%) 92 | 100 100 84 . 100 95 Level 1 7 | . . 15 . . 4 Level 2 . | . . . . . . Level 3 . | . . . . . . Level 4 . | . . . . . . Level 5 . | . . . . . . High Security . | . . . . . . Max Security . | . . . . . . Squads Dispatched 5 | . 1 . . . 4 Investigation 1 | . . . . . 1 Extermination . | . . . . . . Reinforcement 4 | . 1 . . . 3 Assault . | . . . . . . Garrison . | . . . . . . Intercept . | . . . . . . Searches Triggered . | . . . . . . Construction Impeded . | . . . . . . Haulers Reinforced . | . . . . . . Active Scanning Responses . | . . . . . . Cargo Convoy Interrupts . | . . . . . . Stealth | -11 -10 -10 -10 -9 -8 --------- Run | Yrd Mat Min Exi Min Mat Distress Signals 6 | . 2 1 . . 3 Communications Jammed . | . . . . . . Distress Signals . | . . . . . . Times Spotted 62 | 1 13 19 . . 29 Peak Tracking Total 9 | 1 4 3 . . 9 Tactical Retreats 2 | . 1 1 . . . Traps | -11 -10 -10 -10 -9 -8 ------- Run | Yrd Mat Min Exi Min Mat Traps Triggered . | . . . . . . Indirectly . | . . . . . . Trap Hack Attempts . | . . . . . . Triggered . | . . . . . . Disarmed . | . . . . . . Reprogrammed 2 | . . . . . 2 Reused . | . . . . . . Traps Extracted . | . . . . . . Installed . | . . . . . . Triggered . | . . . . . . Machines | -11 -10 -10 -10 -9 -8 ---------- Run | Yrd Mat Min Exi Min Mat Machines Disabled 3 | . 1 1 . . 1 Max in Single Turn 1 | . 1 1 . . 1 Machines Repaired . | . . . . . . Machines Dismantled . | . . . . . . Machines Sabotaged . | . . . . . . Overloaded Fab Kills . | . . . . . . Hacking | -11 -10 -10 -10 -9 -8 --------- Run | Yrd Mat Min Exi Min Mat Machines Accessed 14 | . 6 . 5 1 2 Terminals 6 | . 3 . . 1 2 Fabricators . | . . . . . . Repair Stations 1 | . 1 . . . . Recycling Units 2 | . 2 . . . . Scanalyzers . | . . . . . . Garrison Access . | . . . . . . Total Hacks 67 | . 11 . 50 2 4 Successful 64 | . 8 . 50 2 4 Failed 3 | . 3 . . . . Catastrophic . | . . . . . . Database Lockouts . | . . . . . . Manual 4 | . 2 . 1 1 . Terminals 11 | . 5 . . 2 4 Fabricators . | . . . . . . Repair Stations 2 | . 2 . . . . Recycling Units 4 | . 4 . . . . Scanalyzers . | . . . . . . Garrison Access . | . . . . . . Terminal Hacks 58 | . 2 . 50 2 4 Record 51 | . 1 . 49 1 . Prototype ID Bank 1 | . . . . . 1 Alert Level 1 | . . . . . 1 Reprogram Traps 1 | . . . . . 1 Dispatch Records 1 | . . . . . 1 Zone Layout 2 | . 1 . . 1 . Derelict Proto ID Bank 1 | . . . 1 . . Fabricator Hacks . | . . . . . . Repair Station Hacks 2 | . 2 . . . . Scan Component 1 | . 1 . . . . Repair 1 | . 1 . . . . Recycling Unit Hacks 4 | . 4 . . . . Process 2 | . 2 . . . . Report Inventory 2 | . 2 . . . . Scanalyzer . | . . . . . . Garrison Access Hacks . | . . . . . . Unauthorized Hacks . | . . . . . . Terminals . | . . . . . . Fabricators . | . . . . . . Repair Stations . | . . . . . . Recycling Units . | . . . . . . Scanalyzers . | . . . . . . Garrison Access . | . . . . . . Data Cores Recovered . | . . . . . . Used . | . . . . . . Hacking Detections 6 | . 4 . . 1 1 Full Trace Events 2 | . 1 . . . 1 Feedback Events . | . . . . . . Feedback Blocked . | . . . . . . Robot Schematics Acquired . | . . . . . . Robots Built . | . . . . . . Authchips . | . . . . . . Time . | . . . . . . Total Robot Build Rating . | . . . . . . Part Schematics Acquired . | . . . . . . Parts Built . | . . . . . . Authchips . | . . . . . . Time . | . . . . . . Total Part Build Rating . | . . . . . . Parts Repaired 1 | . 1 . . . . Time 26 | . 26 . . . . Parts Recycled . | . . . . . . Recycled Matter 3 | . 3 . . . . Retrieved Matter . | . . . . . . Retrieved Components . | . . . . . . Parts Scanalyzed . | . . . . . . Part Schematics Acquired . | . . . . . . Parts Damaged . | . . . . . . Bothacking | -11 -10 -10 -10 -9 -8 ------------ Run | Yrd Mat Min Exi Min Mat Used RIF Installer . | . . . . . . Robots Hacked . | . . . . . . Non-combat . | . . . . . . Combat . | . . . . . . Robot Hacks Applied . | . . . . . . Relay Couplers Released . | . . . . . . Fabnet Peak Effective % . | . . . . . . Robots Rewired . | . . . . . . Allies Hacked . | . . . . . . Hacks Repelled . | . . . . . . Allies | -11 -10 -10 -10 -9 -8 -------- Run | Yrd Mat Min Exi Min Mat Total Allies . | . . . . . . Largest Group . | . . . . . . Highest-Rated Group . | . . . . . . Highest-Rated Ally . | . . . . . . Total Orders . | . . . . . . Ally Attacks . | . . . . . . Total Damage . | . . . . . . Kills . | . . . . . . Allies Corrupted . | . . . . . . Allies Melted . | . . . . . . Intel | -11 -10 -10 -10 -9 -8 ------- Run | Yrd Mat Min Exi Min Mat Robot Analysis Total . | . . . . . . Derelict Logs Recovered 1 | . . 1 . . . Drone Launches . | . . . . . . Drone Recoveries . | . . . . . . Exploration | -11 -10 -10 -10 -9 -8 ------------- Run | Yrd Mat Min Exi Min Mat Turns Passed 4127 | 135 576 1176 834 24 1382 Spaces Moved 2538 | 79 345 786 684 21 623 Core 23 | 22 . . . . 1 Treads 232 | . . . . . 232 Legs 2283 | 57 345 786 684 21 390 Wheels . | . . . . . . Hover . | . . . . . . Flight . | . . . . . . Fastest Speed 50 | 50 120 120 120 120 50 Average Speed 134 | 100 120 120 120 120 182 Slowest Speed 260 | 120 120 120 190 120 260 Overloaded Moves . | . . . . . . Propulsion Burnouts . | . . . . . . Robots Hopped . | . . . . . . Cave-ins Triggered . | . . . . . . Exploration Rate (%) 47 | 8 47 95 91 9 35 Regions Visited 5 Branch Regions 3 Pre-discovered Areas 1 | . . . 1 . . Known Exits Taken . | . . . . . . Unknown Exits Taken 5 | 1 1 1 1 1 . Scrap Searched . | . . . . . . Spaces Dug . | . . . . . . Terrain Destroyed 69 | . 4 56 . . 9 Melee . | . . . . . . Projectile 10 | . . 1 . . 9 AOE 59 | . 4 55 . . . Terrain Rammed 1 | . . . . . 1 Walls Destroyed . | . . . . . . Machines Disabled . | . . . . . . Actions | -11 -10 -10 -10 -9 -8 --------- Run | Yrd Mat Min Exi Min Mat Total 3016 | 129 467 943 696 20 761 Wait 219 | 31 78 87 6 . 17 Move 2533 | 78 344 785 683 20 623 Hop . | . . . . . . Pick Up 47 | 9 11 7 2 . 18 Fast Attach 6 | . 1 . . . 5 Attach 27 | 6 2 1 1 . 17 Detach 1 | 1 . . . . . Swap 22 | 1 4 14 . . 3 Drop 28 | . 5 7 4 . 12 Fire 122 | 3 21 36 . . 62 Melee 6 | . . 6 . . . Ram 1 | . . . . . 1 Kick 4 | . 1 . . . 3 Crush . | . . . . . . Escape Stasis . | . . . . . . Rewire . | . . . . . . Trap . | . . . . . . Miscellaneous . | . . . . . . Route ------- -11/Scrapyard -10/Materials (discovered 2 exits: [*Mat] / [*Min]) -10/Mines (discovered 4 exits: [*Mat x2] / *Exi / [*Sub]) -10/Exiles (discovered 2 exits: *Min x2) -9/Mines -8/Materials (discovered 1 exit: Fac) History --------- Turn | Location | Event 2 | -11/Scrapyard | Met Revision 17 98 | -11/Scrapyard | Discovered new exit (range 8) 136 | -11/Scrapyard | Entered Materials 203 | -10/Materials | Repaired Aluminum Leg 308 | -10/Materials | Build established: Mutant 541 | -10/Materials | Discovered new exit (range 4) 694 | -10/Materials | Discovered new exit (range 8) 712 | -10/Materials | Entered Mines 719 | -10/Mines | Received a Rocket Launcher from a helpful Derelict 739 | -10/Mines | Learned location of 1 exit from Materials 1058 | -10/Mines | Discovered new exit (range 9) 1118 | -10/Mines | A weapon hastily lodged in a ceiling crevice suddenly fell to the ground 1219 | -10/Mines | Discovered new exit (range 9) 1421 | -10/Mines | Discovered new exit (range 11) 1480 | -10/Mines | Excavation squad dispatched 1480 | -10/Mines | A large section of the Mines collapsed 1537 | -10/Mines | Core integrity fell below 50% 1707 | -10/Mines | Core integrity fell below 20% 1880 | -10/Mines | Deemed a non-threat by the Exiles lab entrance 1881 | -10/Mines | Discovered new exit (range 5) 1888 | -10/Mines | Entered Exiles 1938 | -10/Exiles | Discovered new exit (range 15) 1958 | -10/Exiles | Met 8R-AWN 1984 | -10/Exiles | Met EX-HEX 2021 | -10/Exiles | Build established: Scavenger-Mutant 2049 | -10/Exiles | Met EX-BIN 2089 | -10/Exiles | Aligned with FarCom system 2090 | -10/Exiles | Given EX-Vault access code 2126 | -10/Exiles | Opened EX-Vault 2135 | -10/Exiles | Found AWS/Gauss 2194 | -10/Exiles | Warned to stay clear of 0b10 Research branches 2230 | -10/Exiles | Met EX-DEC 2279 | -10/Exiles | Learned location of Zion (-7) 2350 | -10/Exiles | Discovered new exit (range 12) 2434 | -10/Exiles | Build established: Mutant 2450 | -10/Exiles | Visited The Gauntlet 2722 | -10/Exiles | Left Exiles lab with AWS/Gauss 2722 | -10/Exiles | Entered Mines 2730 | -9/Mines | Discovered new exit (range 15) 2746 | -9/Mines | Entered Materials 2746 | -8/Materials | Evolved 4 slots: Propulsion x2, Utility x1, Weapon x1 2747 | -8/Materials | Identified exit to Factory 3296 | -8/Materials | Build established: Scavenger-Skirmisher 4114 | -8/Materials | Core integrity fell below 50% 4124 | -8/Materials | Core integrity fell below 20% 4128 | -8/Materials | Destroyed by C-17 Slicer with Blade Saw Last Messages --------------- 04115_ U-05 Engineer lays Concrete. 04117_ Hvy. Assault Rifle severed. 04117_ Critical hit (Burn: +37). 04118_ U-05 Engineer lays Concrete. 04118_ Kicked C-17 Slicer. 04118_ R-06 Scavenger destroyed. 04119_ Pulse Rifle severed. 04119_ Acquired Aluminum Leg. 04119_ U-05 Engineer lays Concrete. 04121_ U-05 Engineer builds a Wall. 04123_ Imp. Heat Sink severed. 04123_ U-05 Engineer builds a Wall. 04123_ Acquired Aluminum Leg. 04126_ Acquired Blade Saw. 04126_ U-05 Engineer builds a Wall. 04126_ U-05 Engineer repairs door. 04126_ Aluminum Leg destroyed. 04127_ Knocked back. 04128_ Acquired 21 matter. [Achievement: First Step to Greatness] Map ----- +----------------------------------------------------+ | ???????????????? ?????????????????? #??# | | ????????????????# ?????????????????# #??# | | ????????????????# ?????????????????# #??# | | ????????????????# ?????????????????# #??# | | ????????????????# ?????????????????# #### | | ????????????????# ?????????????????# | | ????????????????# #######??????????+ | | ????????????????# T ####????????# | | ????????????????# +????????# ###### | | ????????????????# ####????????# #????? | | ????????????????# = ##??????????# #????? | | ????????????????# % ############# +????? | | ????????????????# ^ " #????? | | ????????????????# """ % #????? | | ????????????????# """" #????? | | ????????????????# """" %################????? | | ????????????????# """%%= #???????????????????? | | ????????????????#^ !%%%#???????????????????? | | ????????????????# = #[??" ??????????????? | | ????????????????# # ?"""??????????????? | | ?????????? ???# #? S" #????????????? | | ????????? # # ??????????????? | | ????????? + ##+#########????????? | | ?????????? # [[] g Y ???????? | | ??????????? ?# *%%[! g ???????? | | ??????????? ??# ][!c@ =%### ########????????? | | ??????????? ???# ]^[c =###??#???????????????? | | ????????????????# ][/[% # #?????????????? | | ????????????????# m + ?? #?????????????? | | ????????????????# # ?????????????????? | | ????????????????# #? """???????????????? | | ????????????????# u u ?""????????????????? | | ????????????????# u # ??????????????????? | | ????????????????# H u #####?????????????????? | | ????????????????## u#### #?????????????????????? | | ????????????????##t ???? #???????????????????